[Event "Titled Tuesday Blitz July 20 2021"]
[White "Czerw, Dawid"]
[Black "Timofeev, Artyom"]
[WhiteFideId "1145746"]
[BlackFideId "4140419"]
[WhiteElo "2075"]
[BlackElo "2582"]
[Result "0-1"]
[Round "03"]
[TimeControl "180+1"]
[Date "2021.07.21"]
[WhiteClock "0:00:03"]
[BlackClock "0:00:48"]

1. d4 {[%clk 0:03:00]}  Nf6 {[%clk 0:02:59]} 2. c4 {[%clk 0:02:59]}  b6 {[%clk 0:02:59]} 3. f3 {[%clk 0:02:50]}  d5 {[%clk 0:02:48]} 4. cxd5 {[%clk 0:02:47]}  Nxd5 {[%clk 0:02:49]} 5. e4 {[%clk 0:02:47]}  Nf6 {[%clk 0:02:49]} 6. Bb5+ {[%clk 0:02:35]}  c6 {[%clk 0:02:48]} 7. Bc4 {[%clk 0:02:35]}  e6 {[%clk 0:02:46]} 8. Be3 {[%clk 0:02:29]}  Be7 {[%clk 0:02:46]} 9. Ne2 {[%clk 0:02:29]}  O-O {[%clk 0:02:45]} 10. O-O {[%clk 0:02:29]}  Bb7 {[%clk 0:02:44]} 11. Nbc3 {[%clk 0:02:17]}  Nbd7 {[%clk 0:02:43]} 12. a4 {[%clk 0:02:07]}  c5 {[%clk 0:02:39]} 13. a5 {[%clk 0:01:28]}  cxd4 {[%clk 0:02:19]} 14. Nxd4 {[%clk 0:01:27]}  bxa5 {[%clk 0:02:19]} 15. Ndb5 {[%clk 0:00:56]}  Bb4 {[%clk 0:02:09]} 16. Qe2 {[%clk 0:00:47]}  a6 {[%clk 0:02:06]} 17. Nd4 {[%clk 0:00:43]}  Ne5 {[%clk 0:02:00]} 18. Bb3 {[%clk 0:00:38]}  Qe7 {[%clk 0:01:59]} 19. h3 {[%clk 0:00:32]}  Rfd8 {[%clk 0:01:50]} 20. Rfd1 {[%clk 0:00:31]}  h6 {[%clk 0:01:43]} 21. Na4 {[%clk 0:00:31]}  Nfd7 {[%clk 0:01:38]} 22. f4 {[%clk 0:00:29]}  Nc6 {[%clk 0:01:37]} 23. Nxc6 {[%clk 0:00:27]}  Bxc6 {[%clk 0:01:37]} 24. e5 {[%clk 0:00:21]}  Bb5 {[%clk 0:01:24]} 25. Qf3 {[%clk 0:00:20]}  Nf8 {[%clk 0:01:25]} 26. Nb6 {[%clk 0:00:19]}  Rxd1+ {[%clk 0:01:24]} 27. Rxd1 {[%clk 0:00:18]}  Rd8 {[%clk 0:01:25]} 28. Kh2 {[%clk 0:00:17]}  Rxd1 {[%clk 0:01:19]} 29. Qxd1 {[%clk 0:00:18]}  Ng6 {[%clk 0:01:18]} 30. Nc4 {[%clk 0:00:17]}  a4 {[%clk 0:01:06]} 31. Ba2 {[%clk 0:00:16]}  Bc5 {[%clk 0:01:06]} 32. Bxc5 {[%clk 0:00:15]}  Qxc5 {[%clk 0:01:06]} 33. Nd6 {[%clk 0:00:15]}  Nxf4 {[%clk 0:01:02]} 34. Nxb5 {[%clk 0:00:09]}  axb5 {[%clk 0:00:57]} 35. Bb1 {[%clk 0:00:10]}  Nd5 {[%clk 0:00:53]} 36. Qe1 {[%clk 0:00:09]}  Qe3 {[%clk 0:00:48]} 37. Qa5 {[%clk 0:00:03]}  Qxe5+ {[%clk 0:00:48]} 0-1


[Site "https://www.chess.com"]

[Event "Titled Tuesday Blitz July 20 2021"]
[White "Dang, Hoang Son"]
[Black "Locci, Damiano"]
[WhiteFideId "12402435"]
[BlackFideId "819751"]
[WhiteElo "2248"]
[BlackElo "2421"]
[Result "0-1"]
[Round "03"]
[TimeControl "180+1"]
[Date "2021.07.21"]
[WhiteClock "0:00:31"]
[BlackClock "0:00:02"]

1. d4 {[%clk 0:03:00]}  d5 {[%clk 0:02:49]} 2. c4 {[%clk 0:02:59]}  Nc6 {[%clk 0:02:50]} 3. Nf3 {[%clk 0:03:00]}  Bg4 {[%clk 0:02:49]} 4. e3 {[%clk 0:02:59]}  e5 {[%clk 0:02:48]} 5. Be2 {[%clk 0:02:58]}  e4 {[%clk 0:02:46]} 6. Ne5 {[%clk 0:02:49]}  Bxe2 {[%clk 0:02:30]} 7. Nxc6 {[%clk 0:02:48]}  Bxd1 {[%clk 0:02:13]} 8. Nxd8 {[%clk 0:02:47]}  Rxd8 {[%clk 0:02:14]} 9. Kxd1 {[%clk 0:02:47]}  dxc4 {[%clk 0:02:12]} 10. Nd2 {[%clk 0:02:47]}  c5 {[%clk 0:02:06]} 11. dxc5 {[%clk 0:02:48]}  Nf6 {[%clk 0:01:52]} 12. Ke2 {[%clk 0:02:46]}  c3 {[%clk 0:01:50]} 13. bxc3 {[%clk 0:02:41]}  Bxc5 {[%clk 0:01:50]} 14. Nb3 {[%clk 0:02:36]}  Bb6 {[%clk 0:01:43]} 15. Ba3 {[%clk 0:02:31]}  Rd3 {[%clk 0:00:56]} 16. Rac1 {[%clk 0:02:15]}  Kd7 {[%clk 0:00:50]} 17. c4 {[%clk 0:02:09]}  Kc8 {[%clk 0:00:42]} 18. c5 {[%clk 0:01:51]}  Bc7 {[%clk 0:00:41]} 19. Bb2 {[%clk 0:01:50]}  Rhd8 {[%clk 0:00:41]} 20. Rc4 {[%clk 0:01:44]}  Ba5 {[%clk 0:00:23]} 21. Bxf6 {[%clk 0:01:32]}  Rd2+ {[%clk 0:00:08]} 22. Nxd2 {[%clk 0:01:22]}  Rxd2+ {[%clk 0:00:09]} 23. Ke1 {[%clk 0:01:22]}  gxf6 {[%clk 0:00:04]} 24. Rxe4 {[%clk 0:00:52]}  Rd4+ {[%clk 0:00:04]} 25. Ke2 {[%clk 0:00:49]}  Rxe4 {[%clk 0:00:04]} 26. Rd1 {[%clk 0:00:48]}  Re7 {[%clk 0:00:04]} 27. Rd5 {[%clk 0:00:48]}  Bc7 {[%clk 0:00:03]} 28. Rh5 {[%clk 0:00:48]}  Kd7 {[%clk 0:00:03]} 29. Rxh7 {[%clk 0:00:47]}  Kc6 {[%clk 0:00:04]} 30. Rh5 {[%clk 0:00:47]}  Re5 {[%clk 0:00:02]} 31. Rh6 {[%clk 0:00:48]}  Re6 {[%clk 0:00:02]} 32. Rh7 {[%clk 0:00:47]}  Re7 {[%clk 0:00:02]} 33. h4 {[%clk 0:00:46]}  Kxc5 {[%clk 0:00:02]} 34. h5 {[%clk 0:00:46]}  f5 {[%clk 0:00:03]} 35. Rg7 {[%clk 0:00:35]}  Be5 {[%clk 0:00:03]} 36. Rg5 {[%clk 0:00:36]}  Kd6 {[%clk 0:00:03]} 37. Rxf5 {[%clk 0:00:36]}  Ke6 {[%clk 0:00:04]} 38. g4 {[%clk 0:00:37]}  Bf6 {[%clk 0:00:02]} 39. f4 {[%clk 0:00:37]}  Rd7 {[%clk 0:00:02]} 40. Kf3 {[%clk 0:00:37]}  Rc7 {[%clk 0:00:02]} 41. h6 {[%clk 0:00:33]}  Rc3 {[%clk 0:00:02]} 42. Rh5 {[%clk 0:00:34]}  Bd4 {[%clk 0:00:02]} 43. Ke4 {[%clk 0:00:31]}  Bb6 {[%clk 0:00:01]} 44. h7 {[%clk 0:00:31]}  Rxe3# {[%clk 0:00:02]} 0-1


[Site "https://www.chess.com"]

[Event "Titled Tuesday Blitz July 20 2021"]
[White "Fisabilillah, Ummi"]
[Black "Mohammad Fahad, Rahman"]
[WhiteFideId "7104804"]
[BlackFideId "10207791"]
[WhiteElo "2091"]
[BlackElo "2323"]
[Result "1-0"]
[Round "03"]
[TimeControl "180+1"]
[Date "2021.07.21"]
[WhiteClock "0:00:06"]
[BlackClock "0:00:04"]

1. d4 {[%clk 0:03:00]}  Nf6 {[%clk 0:02:51]} 2. c4 {[%clk 0:02:56]}  e6 {[%clk 0:02:52]} 3. Nf3 {[%clk 0:02:56]}  d5 {[%clk 0:02:48]} 4. cxd5 {[%clk 0:02:56]}  exd5 {[%clk 0:02:47]} 5. Nc3 {[%clk 0:02:56]}  a6 {[%clk 0:02:37]} 6. Qc2 {[%clk 0:02:51]}  Be6 {[%clk 0:02:36]} 7. Bg5 {[%clk 0:02:51]}  Nbd7 {[%clk 0:02:36]} 8. e3 {[%clk 0:02:51]}  Bd6 {[%clk 0:02:22]} 9. Bd3 {[%clk 0:02:50]}  h6 {[%clk 0:02:22]} 10. Bh4 {[%clk 0:02:50]}  O-O {[%clk 0:02:19]} 11. O-O {[%clk 0:02:48]}  c5 {[%clk 0:02:19]} 12. dxc5 {[%clk 0:02:35]}  Nxc5 {[%clk 0:02:20]} 13. Bf5 {[%clk 0:02:16]}  Rc8 {[%clk 0:02:15]} 14. Nd4 {[%clk 0:02:00]}  Be7 {[%clk 0:01:30]} 15. Qe2 {[%clk 0:01:47]}  Qd7 {[%clk 0:01:26]} 16. Nxe6 {[%clk 0:01:39]}  fxe6 {[%clk 0:01:26]} 17. Bh3 {[%clk 0:01:39]}  Nfe4 {[%clk 0:01:23]} 18. Nxe4 {[%clk 0:01:20]}  Bxh4 {[%clk 0:01:24]} 19. Nxc5 {[%clk 0:01:15]}  Rxc5 {[%clk 0:01:24]} 20. Qg4 {[%clk 0:01:11]}  Bf6 {[%clk 0:01:17]} 21. Rab1 {[%clk 0:01:10]}  Rc6 {[%clk 0:01:08]} 22. Rfd1 {[%clk 0:01:08]}  Qd6 {[%clk 0:01:06]} 23. g3 {[%clk 0:01:06]}  Qe5 {[%clk 0:00:59]} 24. Bf1 {[%clk 0:01:00]}  Bg5 {[%clk 0:00:43]} 25. Qe2 {[%clk 0:00:49]}  Qe4 {[%clk 0:00:37]} 26. Bg2 {[%clk 0:00:48]}  Qf5 {[%clk 0:00:34]} 27. f4 {[%clk 0:00:45]}  Bd8 {[%clk 0:00:33]} 28. e4 {[%clk 0:00:45]}  dxe4 {[%clk 0:00:25]} 29. Bxe4 {[%clk 0:00:44]}  Qc5+ {[%clk 0:00:26]} 30. Kg2 {[%clk 0:00:43]}  Rd6 {[%clk 0:00:26]} 31. Bxb7 {[%clk 0:00:39]}  Bf6 {[%clk 0:00:22]} 32. Rxd6 {[%clk 0:00:36]}  Qxd6 {[%clk 0:00:23]} 33. Rd1 {[%clk 0:00:37]}  Qb6 {[%clk 0:00:23]} 34. Bf3 {[%clk 0:00:34]}  Re8 {[%clk 0:00:20]} 35. b3 {[%clk 0:00:32]}  e5 {[%clk 0:00:20]} 36. Qc4+ {[%clk 0:00:31]}  Kh8 {[%clk 0:00:19]} 37. fxe5 {[%clk 0:00:30]}  Bxe5 {[%clk 0:00:19]} 38. Qf7 {[%clk 0:00:28]}  Qb8 {[%clk 0:00:15]} 39. Rd7 {[%clk 0:00:25]}  Qc8 {[%clk 0:00:11]} 40. Rd2 {[%clk 0:00:20]}  Rf8 {[%clk 0:00:10]} 41. Qd5 {[%clk 0:00:17]}  Bf6 {[%clk 0:00:09]} 42. Qe4 {[%clk 0:00:17]}  Qc3 {[%clk 0:00:08]} 43. Rc2 {[%clk 0:00:16]}  Qa1 {[%clk 0:00:07]} 44. Qd3 {[%clk 0:00:14]}  Bg5 {[%clk 0:00:06]} 45. Re2 {[%clk 0:00:13]}  Bd8 {[%clk 0:00:06]} 46. Qe4 {[%clk 0:00:13]}  Qf6 {[%clk 0:00:06]} 47. h4 {[%clk 0:00:12]}  Bb6 {[%clk 0:00:07]} 48. Qg4 {[%clk 0:00:12]}  Qf7 {[%clk 0:00:05]} 49. Qe4 {[%clk 0:00:11]}  Qf6 {[%clk 0:00:05]} 50. Qg4 {[%clk 0:00:10]}  Qc3 {[%clk 0:00:06]} 51. Qe4 {[%clk 0:00:09]}  Qc5 {[%clk 0:00:06]} 52. h5 {[%clk 0:00:07]}  Qg1+ {[%clk 0:00:06]} 53. Kh3 {[%clk 0:00:08]}  Qf1+ {[%clk 0:00:06]} 54. Bg2 {[%clk 0:00:08]}  Qc1 {[%clk 0:00:06]} 55. Qg6 {[%clk 0:00:08]}  Qc8+ {[%clk 0:00:05]} 56. Qg4 {[%clk 0:00:07]}  Qe8 {[%clk 0:00:04]} 57. Rxe8 {[%clk 0:00:06]}  Rxe8 {[%clk 0:00:04]} 58. Qg6 {[%clk 0:00:06]}  Rb8 {[%clk 0:00:04]} 59. Qd6 {[%clk 0:00:07]}  Rb7 {[%clk 0:00:04]} 60. Bxb7 {[%clk 0:00:06]} 1-0


[Site "https://www.chess.com"]

[Event "Titled Tuesday Blitz July 20 2021"]
[White "Garcia Ramos, Daniel"]
[Black "Gabrielian, Artur"]
[WhiteFideId "32010311"]
[BlackFideId "4131002"]
[WhiteElo "2321"]
[BlackElo "2523"]
[Result "1-0"]
[Round "03"]
[TimeControl "180+1"]
[Date "2021.07.20"]
[WhiteClock "0:00:05"]
[BlackClock "0:00:03"]

1. c4 {[%clk 0:03:00]}  Nf6 {[%clk 0:02:59]} 2. Nf3 {[%clk 0:02:59]}  g6 {[%clk 0:02:59]} 3. g3 {[%clk 0:03:00]}  Bg7 {[%clk 0:03:00]} 4. Bg2 {[%clk 0:03:00]}  O-O {[%clk 0:03:00]} 5. O-O {[%clk 0:03:01]}  d6 {[%clk 0:03:01]} 6. Nc3 {[%clk 0:03:01]}  e5 {[%clk 0:03:00]} 7. d4 {[%clk 0:02:58]}  Nbd7 {[%clk 0:03:00]} 8. Qc2 {[%clk 0:02:47]}  exd4 {[%clk 0:02:45]} 9. Nxd4 {[%clk 0:02:47]}  Nb6 {[%clk 0:02:45]} 10. b3 {[%clk 0:02:42]}  Re8 {[%clk 0:02:39]} 11. Rd1 {[%clk 0:02:36]}  Qe7 {[%clk 0:02:32]} 12. Bf4 {[%clk 0:02:22]}  h5 {[%clk 0:02:20]} 13. Rac1 {[%clk 0:02:04]}  h4 {[%clk 0:02:18]} 14. Nd5 {[%clk 0:02:00]}  Nfxd5 {[%clk 0:01:52]} 15. cxd5 {[%clk 0:02:01]}  Bg4 {[%clk 0:01:24]} 16. Qxc7 {[%clk 0:01:46]}  Qxc7 {[%clk 0:01:19]} 17. Rxc7 {[%clk 0:01:46]}  Bxd4 {[%clk 0:01:18]} 18. Rxd4 {[%clk 0:01:46]}  Rxe2 {[%clk 0:01:18]} 19. h3 {[%clk 0:01:42]}  Bf5 {[%clk 0:01:15]} 20. g4 {[%clk 0:01:28]}  Rc8 {[%clk 0:01:13]} 21. Bxd6 {[%clk 0:01:25]}  Rxc7 {[%clk 0:01:10]} 22. Bxc7 {[%clk 0:01:25]}  Bd7 {[%clk 0:01:11]} 23. a4 {[%clk 0:01:13]}  Re1+ {[%clk 0:01:06]} 24. Kh2 {[%clk 0:01:12]}  Rb1 {[%clk 0:01:04]} 25. a5 {[%clk 0:01:03]}  Nc8 {[%clk 0:01:03]} 26. b4 {[%clk 0:01:02]}  Rb2 {[%clk 0:01:00]} 27. g5 {[%clk 0:00:55]}  Rxf2 {[%clk 0:00:58]} 28. Be5 {[%clk 0:00:48]}  Rc2 {[%clk 0:00:56]} 29. Rxh4 {[%clk 0:00:46]}  Kf8 {[%clk 0:00:45]} 30. Bf6 {[%clk 0:00:44]}  Ne7 {[%clk 0:00:46]} 31. d6 {[%clk 0:00:35]}  Ng8 {[%clk 0:00:45]} 32. Bd4 {[%clk 0:00:26]}  Bc6 {[%clk 0:00:40]} 33. Rg4 {[%clk 0:00:27]}  a6 {[%clk 0:00:35]} 34. Bc5 {[%clk 0:00:24]}  Ke8 {[%clk 0:00:34]} 35. Kg1 {[%clk 0:00:23]}  Rc1+ {[%clk 0:00:33]} 36. Kf2 {[%clk 0:00:17]}  Rc2+ {[%clk 0:00:33]} 37. Kf1 {[%clk 0:00:16]}  Rc1+ {[%clk 0:00:26]} 38. Kf2 {[%clk 0:00:16]}  Rc2+ {[%clk 0:00:26]} 39. Kg1 {[%clk 0:00:17]}  Rc1+ {[%clk 0:00:25]} 40. Bf1 {[%clk 0:00:17]}  f5 {[%clk 0:00:22]} 41. Rf4 {[%clk 0:00:08]}  Bb5 {[%clk 0:00:20]} 42. h4 {[%clk 0:00:08]}  Kd7 {[%clk 0:00:20]} 43. Kg2 {[%clk 0:00:08]}  Rc2+ {[%clk 0:00:18]} 44. Kg3 {[%clk 0:00:06]}  Rc3+ {[%clk 0:00:18]} 45. Kf2 {[%clk 0:00:05]}  Rc2+ {[%clk 0:00:17]} 46. Ke3 {[%clk 0:00:05]}  Bxf1 {[%clk 0:00:15]} 47. Rxf1 {[%clk 0:00:06]}  Ke6 {[%clk 0:00:15]} 48. Kd4 {[%clk 0:00:05]}  Rd2+ {[%clk 0:00:15]} 49. Kc4 {[%clk 0:00:05]}  Rc2+ {[%clk 0:00:15]} 50. Kd3 {[%clk 0:00:05]}  Rh2 {[%clk 0:00:15]} 51. Rf4 {[%clk 0:00:05]}  Kd7 {[%clk 0:00:14]} 52. Kd4 {[%clk 0:00:04]}  Rd2+ {[%clk 0:00:13]} 53. Kc4 {[%clk 0:00:03]}  Rc2+ {[%clk 0:00:13]} 54. Kd3 {[%clk 0:00:02]}  Rh2 {[%clk 0:00:13]} 55. Rd4 {[%clk 0:00:02]}  Rh3+ {[%clk 0:00:13]} 56. Kc4 {[%clk 0:00:02]}  Rh1 {[%clk 0:00:12]} 57. Kd5 {[%clk 0:00:03]}  Rh2 {[%clk 0:00:07]} 58. Rc4 {[%clk 0:00:03]}  Rd2+ {[%clk 0:00:07]} 59. Bd4 {[%clk 0:00:04]}  f4 {[%clk 0:00:06]} 60. Rc7+ {[%clk 0:00:04]}  Ke8 {[%clk 0:00:07]} 61. Rxb7 {[%clk 0:00:04]}  f3 {[%clk 0:00:07]} 62. d7+ {[%clk 0:00:04]}  Ke7 {[%clk 0:00:07]} 63. d8=Q+ {[%clk 0:00:03]}  Kxd8 {[%clk 0:00:06]} 64. Rf7 {[%clk 0:00:04]}  Ne7+ {[%clk 0:00:05]} 65. Kc4 {[%clk 0:00:03]}  Nf5 {[%clk 0:00:05]} 66. Bb6+ {[%clk 0:00:02]}  Ke8 {[%clk 0:00:06]} 67. Rf6 {[%clk 0:00:01]}  f2 {[%clk 0:00:06]} 68. Bxf2 {[%clk 0:00:01]}  Rxf2 {[%clk 0:00:05]} 69. h5 {[%clk 0:00:02]}  Nd6+ {[%clk 0:00:04]} 70. Kd5 {[%clk 0:00:02]}  Rxf6 {[%clk 0:00:03]} 71. gxf6 {[%clk 0:00:03]}  gxh5 {[%clk 0:00:04]} 72. Kxd6 {[%clk 0:00:03]}  h4 {[%clk 0:00:04]} 73. b5 {[%clk 0:00:03]}  h3 {[%clk 0:00:04]} 74. b6 {[%clk 0:00:04]}  h2 {[%clk 0:00:04]} 75. b7 {[%clk 0:00:04]}  h1=Q {[%clk 0:00:05]} 76. b8=Q+ {[%clk 0:00:04]}  Kf7 {[%clk 0:00:06]} 77. Qd8 {[%clk 0:00:04]}  Qd1+ {[%clk 0:00:05]} 78. Kc7 {[%clk 0:00:05]}  Qc2+ {[%clk 0:00:05]} 79. Kb7 {[%clk 0:00:04]}  Qb3+ {[%clk 0:00:03]} 80. Kxa6 {[%clk 0:00:04]}  Qc4+ {[%clk 0:00:04]} 81. Kb7 {[%clk 0:00:05]}  Qe4+ {[%clk 0:00:03]} 82. Kb6 {[%clk 0:00:04]}  Qe3+ {[%clk 0:00:03]} 83. Ka6 {[%clk 0:00:02]}  Qe2+ {[%clk 0:00:04]} 84. Ka7 {[%clk 0:00:02]}  Qe3+ {[%clk 0:00:04]} 85. Qb6 {[%clk 0:00:01]}  Qe1 {[%clk 0:00:04]} 86. a6 {[%clk 0:00:02]}  Qf1 {[%clk 0:00:04]} 87. Qc6 {[%clk 0:00:02]}  Qf2+ {[%clk 0:00:04]} 88. Ka8 {[%clk 0:00:02]}  Qd4 {[%clk 0:00:03]} 89. a7 {[%clk 0:00:02]}  Qd8+ {[%clk 0:00:02]} 90. Kb7 {[%clk 0:00:03]}  Qd3 {[%clk 0:00:03]} 91. a8=Q {[%clk 0:00:03]}  Qb3+ {[%clk 0:00:03]} 92. Kc7 {[%clk 0:00:02]}  Qg3+ {[%clk 0:00:03]} 93. Qd6 {[%clk 0:00:02]}  Qc3+ {[%clk 0:00:03]} 94. Qac6 {[%clk 0:00:03]}  Qa5+ {[%clk 0:00:03]} 95. Kd7 {[%clk 0:00:03]}  Qa7+ {[%clk 0:00:03]} 96. Qcc7 {[%clk 0:00:04]}  Qa4+ {[%clk 0:00:03]} 97. Kd8+ {[%clk 0:00:05]}  Kg6 {[%clk 0:00:03]} 98. Qg7+ {[%clk 0:00:05]}  Kf5 {[%clk 0:00:03]} 99. Qd5+ {[%clk 0:00:05]}  Kf4 {[%clk 0:00:03]} 100. Qgg5# {[%clk 0:00:05]} 1-0


[Site "https://www.chess.com"]

[Event "Titled Tuesday Blitz July 20 2021"]
[White "Goltsev, Dmitry"]
[Black "Chen, Max"]
[WhiteFideId "24176710"]
[BlackFideId "2622440"]
[WhiteElo "2366"]
[BlackElo "2421"]
[Result "1-0"]
[Round "03"]
[TimeControl "180+1"]
[Date "2021.07.21"]
[WhiteClock "0:02:02"]
[BlackClock "0:00:20"]

1. e4 {[%clk 0:02:51]}  c5 {[%clk 0:02:59]} 2. Nf3 {[%clk 0:02:51]}  d6 {[%clk 0:02:59]} 3. d4 {[%clk 0:02:50]}  cxd4 {[%clk 0:02:59]} 4. Nxd4 {[%clk 0:02:51]}  Nf6 {[%clk 0:02:59]} 5. Nc3 {[%clk 0:02:51]}  a6 {[%clk 0:02:57]} 6. a4 {[%clk 0:02:50]}  e5 {[%clk 0:02:49]} 7. Nb3 {[%clk 0:02:50]}  Be6 {[%clk 0:02:48]} 8. Be2 {[%clk 0:02:50]}  Be7 {[%clk 0:02:46]} 9. O-O {[%clk 0:02:51]}  O-O {[%clk 0:02:46]} 10. f4 {[%clk 0:02:51]}  Nc6 {[%clk 0:02:38]} 11. f5 {[%clk 0:02:50]}  Bxb3 {[%clk 0:02:35]} 12. cxb3 {[%clk 0:02:51]}  Nd4 {[%clk 0:02:06]} 13. Bc4 {[%clk 0:02:50]}  b5 {[%clk 0:01:41]} 14. Bd3 {[%clk 0:02:44]}  b4 {[%clk 0:01:38]} 15. Ne2 {[%clk 0:02:44]}  Nxe2+ {[%clk 0:01:35]} 16. Qxe2 {[%clk 0:02:45]}  d5 {[%clk 0:01:33]} 17. exd5 {[%clk 0:02:44]}  Qxd5 {[%clk 0:01:32]} 18. Bxa6 {[%clk 0:02:42]}  Bc5+ {[%clk 0:01:14]} 19. Kh1 {[%clk 0:02:41]}  Rfd8 {[%clk 0:01:01]} 20. Bc4 {[%clk 0:02:40]}  Qe4 {[%clk 0:00:58]} 21. Bg5 {[%clk 0:02:37]}  Qxe2 {[%clk 0:00:49]} 22. Bxe2 {[%clk 0:02:38]}  Bd4 {[%clk 0:00:49]} 23. a5 {[%clk 0:02:34]}  Rdc8 {[%clk 0:00:41]} 24. a6 {[%clk 0:02:33]}  Ne4 {[%clk 0:00:39]} 25. Bh4 {[%clk 0:02:31]}  Bxb2 {[%clk 0:00:37]} 26. Ra2 {[%clk 0:02:24]}  Bd4 {[%clk 0:00:32]} 27. Bf3 {[%clk 0:02:23]}  Nc3 {[%clk 0:00:23]} 28. Bxa8 {[%clk 0:02:20]}  Nxa2 {[%clk 0:00:23]} 29. Bb7 {[%clk 0:02:21]}  Rc1 {[%clk 0:00:23]} 30. Rxc1 {[%clk 0:02:18]}  Nxc1 {[%clk 0:00:24]} 31. f6 {[%clk 0:02:16]}  Nxb3 {[%clk 0:00:23]} 32. fxg7 {[%clk 0:02:14]}  Na5 {[%clk 0:00:22]} 33. Be4 {[%clk 0:02:05]}  b3 {[%clk 0:00:22]} 34. Bf6 {[%clk 0:02:03]}  b2 {[%clk 0:00:20]} 35. Bxe5 {[%clk 0:02:02]} 1-0


[Site "https://www.chess.com"]

[Event "Titled Tuesday Blitz July 20 2021"]
[White "Gubajdullin, Alexei"]
[Black "Jarovinsky, Alexey"]
[WhiteFideId "4141202"]
[BlackFideId "14115131"]
[WhiteElo "2403"]
[BlackElo "2446"]
[Result "0-1"]
[Round "03"]
[TimeControl "180+1"]
[Date "2021.07.21"]
[WhiteClock "0:00:01"]
[BlackClock "0:00:08"]

1. d4 {[%clk 0:03:00]}  Nc6 {[%clk 0:03:00]} 2. Bf4 {[%clk 0:02:59]}  d6 {[%clk 0:02:54]} 3. Nf3 {[%clk 0:02:59]}  Nf6 {[%clk 0:02:51]} 4. e3 {[%clk 0:02:58]}  Nh5 {[%clk 0:02:47]} 5. Bg5 {[%clk 0:02:58]}  h6 {[%clk 0:02:46]} 6. Bh4 {[%clk 0:02:58]}  g5 {[%clk 0:02:46]} 7. Nfd2 {[%clk 0:02:58]}  Ng7 {[%clk 0:02:44]} 8. Bg3 {[%clk 0:02:57]}  Nf5 {[%clk 0:02:44]} 9. Bd3 {[%clk 0:02:55]}  Bg7 {[%clk 0:02:39]} 10. c3 {[%clk 0:02:54]}  e6 {[%clk 0:02:17]} 11. Na3 {[%clk 0:02:41]}  Bd7 {[%clk 0:02:14]} 12. Nac4 {[%clk 0:02:40]}  Nce7 {[%clk 0:02:09]} 13. e4 {[%clk 0:02:39]}  Nxg3 {[%clk 0:02:08]} 14. hxg3 {[%clk 0:02:39]}  b5 {[%clk 0:01:56]} 15. Ne3 {[%clk 0:02:38]}  c5 {[%clk 0:01:54]} 16. Nf3 {[%clk 0:02:17]}  cxd4 {[%clk 0:01:41]} 17. cxd4 {[%clk 0:02:16]}  Qb6 {[%clk 0:01:25]} 18. e5 {[%clk 0:02:05]}  dxe5 {[%clk 0:01:06]} 19. dxe5 {[%clk 0:01:48]}  Qa5+ {[%clk 0:01:05]} 20. Kf1 {[%clk 0:01:47]}  Bc6 {[%clk 0:00:56]} 21. Ng4 {[%clk 0:01:44]}  O-O-O {[%clk 0:00:50]} 22. Qc2 {[%clk 0:01:35]}  Kb8 {[%clk 0:00:46]} 23. Be4 {[%clk 0:01:35]}  Rc8 {[%clk 0:00:39]} 24. a4 {[%clk 0:01:22]}  bxa4 {[%clk 0:00:29]} 25. Kg1 {[%clk 0:01:21]}  Qb4 {[%clk 0:00:20]} 26. Bxc6 {[%clk 0:01:15]}  Rxc6 {[%clk 0:00:21]} 27. Qe2 {[%clk 0:01:05]}  Qxg4 {[%clk 0:00:19]} 28. Qb5+ {[%clk 0:01:00]}  Rb6 {[%clk 0:00:19]} 29. Qd7 {[%clk 0:01:00]}  Qb4 {[%clk 0:00:15]} 30. Rxa4 {[%clk 0:00:57]}  Qb5 {[%clk 0:00:15]} 31. Qxa7+ {[%clk 0:00:50]}  Kc8 {[%clk 0:00:15]} 32. Nd4 {[%clk 0:00:33]}  Qc5 {[%clk 0:00:15]} 33. Qa8+ {[%clk 0:00:29]}  Rb8 {[%clk 0:00:14]} 34. Qa6+ {[%clk 0:00:27]}  Kd8 {[%clk 0:00:13]} 35. Rc4 {[%clk 0:00:27]}  Qd5 {[%clk 0:00:12]} 36. Kh2 {[%clk 0:00:09]}  Ra8 {[%clk 0:00:11]} 37. Qb6+ {[%clk 0:00:06]}  Ke8 {[%clk 0:00:12]} 38. Rhc1 {[%clk 0:00:06]}  Bxe5 {[%clk 0:00:11]} 39. Nb5 {[%clk 0:00:05]}  Kf8 {[%clk 0:00:11]} 40. R4c2 {[%clk 0:00:04]}  Kg7 {[%clk 0:00:10]} 41. Qe3 {[%clk 0:00:03]}  Bf6 {[%clk 0:00:09]} 42. Nc3 {[%clk 0:00:03]}  Qe5 {[%clk 0:00:09]} 43. Qf3 {[%clk 0:00:02]}  Nf5 {[%clk 0:00:08]} 44. Ne4 {[%clk 0:00:02]}  Nd4 {[%clk 0:00:08]} 45. Qe3 {[%clk 0:00:02]}  Nxc2 {[%clk 0:00:08]} 46. Rxc2 {[%clk 0:00:01]}  Ra4 {[%clk 0:00:08]} 0-1


[Site "https://www.chess.com"]

[Event "Titled Tuesday Blitz July 20 2021"]
[White "Guliev, Logman"]
[Black "Ahmadzada, Ahmad"]
[WhiteFideId "13400061"]
[BlackFideId "13413007"]
[WhiteElo "2128"]
[BlackElo "2226"]
[Result "0-1"]
[Round "03"]
[TimeControl "180+1"]
[Date "2021.07.21"]
[WhiteClock "0:00:23"]
[BlackClock "0:01:21"]

1. e4 {[%clk 0:03:00]}  d5 {[%clk 0:02:59]} 2. exd5 {[%clk 0:02:59]}  Qxd5 {[%clk 0:03:00]} 3. Nc3 {[%clk 0:02:59]}  Qd8 {[%clk 0:03:00]} 4. d4 {[%clk 0:02:59]}  Nf6 {[%clk 0:03:01]} 5. Nf3 {[%clk 0:02:59]}  Bg4 {[%clk 0:03:01]} 6. Be2 {[%clk 0:02:58]}  e6 {[%clk 0:03:00]} 7. O-O {[%clk 0:02:57]}  Be7 {[%clk 0:03:00]} 8. h3 {[%clk 0:02:57]}  Bxf3 {[%clk 0:03:00]} 9. Bxf3 {[%clk 0:02:56]}  c6 {[%clk 0:03:00]} 10. Re1 {[%clk 0:02:54]}  O-O {[%clk 0:03:01]} 11. Bg5 {[%clk 0:02:53]}  Nbd7 {[%clk 0:03:01]} 12. Qe2 {[%clk 0:02:52]}  Nb6 {[%clk 0:03:01]} 13. Rad1 {[%clk 0:02:51]}  Nfd5 {[%clk 0:03:01]} 14. Bxe7 {[%clk 0:02:50]}  Qxe7 {[%clk 0:03:02]} 15. Nxd5 {[%clk 0:02:41]}  cxd5 {[%clk 0:03:01]} 16. c3 {[%clk 0:02:37]}  Qd7 {[%clk 0:02:58]} 17. Qd3 {[%clk 0:02:32]}  Nc4 {[%clk 0:02:58]} 18. Re2 {[%clk 0:02:26]}  b5 {[%clk 0:02:58]} 19. b3 {[%clk 0:02:20]}  Nd6 {[%clk 0:02:57]} 20. Rc2 {[%clk 0:02:11]}  Rac8 {[%clk 0:02:57]} 21. g4 {[%clk 0:02:08]}  Rc7 {[%clk 0:02:56]} 22. Kg2 {[%clk 0:02:06]}  Rfc8 {[%clk 0:02:57]} 23. Rdc1 {[%clk 0:02:04]}  a5 {[%clk 0:02:56]} 24. h4 {[%clk 0:02:03]}  Qe7 {[%clk 0:02:55]} 25. Kh3 {[%clk 0:01:59]}  Qf6 {[%clk 0:02:50]} 26. Qe3 {[%clk 0:01:55]}  b4 {[%clk 0:02:45]} 27. g5 {[%clk 0:01:32]}  Qf5+ {[%clk 0:02:26]} 28. Bg4 {[%clk 0:01:31]}  Qe4 {[%clk 0:02:24]} 29. Qxe4 {[%clk 0:01:26]}  Nxe4 {[%clk 0:02:23]} 30. c4 {[%clk 0:01:24]}  dxc4 {[%clk 0:01:56]} 31. bxc4 {[%clk 0:01:23]}  Rd8 {[%clk 0:01:52]} 32. d5 {[%clk 0:00:53]}  exd5 {[%clk 0:01:51]} 33. cxd5 {[%clk 0:00:52]}  Nxf2+ {[%clk 0:01:51]} 34. Kg3 {[%clk 0:00:51]}  Rxc2 {[%clk 0:01:50]} 35. Rxc2 {[%clk 0:00:51]}  Ne4+ {[%clk 0:01:51]} 36. Kf4 {[%clk 0:00:49]}  Nc3 {[%clk 0:01:52]} 37. Bf3 {[%clk 0:00:48]}  Kf8 {[%clk 0:01:49]} 38. a3 {[%clk 0:00:47]}  Nxd5+ {[%clk 0:01:45]} 39. Bxd5 {[%clk 0:00:31]}  Rxd5 {[%clk 0:01:46]} 40. axb4 {[%clk 0:00:32]}  axb4 {[%clk 0:01:43]} 41. Rc8+ {[%clk 0:00:30]}  Ke7 {[%clk 0:01:43]} 42. Rb8 {[%clk 0:00:31]}  Rd4+ {[%clk 0:01:38]} 43. Ke5 {[%clk 0:00:31]}  Rxh4 {[%clk 0:01:36]} 44. Rb7+ {[%clk 0:00:30]}  Ke8 {[%clk 0:01:36]} 45. Rb8+ {[%clk 0:00:31]}  Kd7 {[%clk 0:01:34]} 46. Rb7+ {[%clk 0:00:31]}  Kc6 {[%clk 0:01:31]} 47. Rxf7 {[%clk 0:00:31]}  g6 {[%clk 0:01:27]} 48. Rf8 {[%clk 0:00:27]}  Kb5 {[%clk 0:01:26]} 49. Rb8+ {[%clk 0:00:25]}  Kc4 {[%clk 0:01:26]} 50. Rc8+ {[%clk 0:00:24]}  Kd3 {[%clk 0:01:26]} 51. Rb8 {[%clk 0:00:23]}  Kc3 {[%clk 0:01:25]} 52. Rc8+ {[%clk 0:00:23]}  Rc4 {[%clk 0:01:21]} 53. Rb8 {[%clk 0:00:23]}  b3 {[%clk 0:01:21]} 0-1


[Site "https://www.chess.com"]